fUSD/lending_fUSD_20260213
["ID","MTS","AMOUNT","RATE_DAILY","PERIOD"]
[405320835,1770994239079,-1500.0,0.00010318,2]
[405320836,1770994239088,-433.0,0.00010349,2]
[405320837,1770994239098,-3292.0,0.00010474,2]
[405320838,1770994239107,-1000.0,0.000105,2]
[405320839,1770994239117,-1000.0,0.00010581,2]
[405320840,1770994239126,-792.93,0.00010592,2]
[405320841,1770994239136,-505.10973408,0.00010754,2]
[405320842,1770994239147,-792.93,0.00010866,2]
[405320843,1770994239157,-2000.0,0.00010866,2]
[405320844,1770994239167,-766.54635509,0.00010866,2]
[405320845,1770994239176,-2000.0,0.00010866,2]
[405320846,1770994239186,-1577.28043664,0.00010866,2]
[405320847,1770994239196,-152.9,0.00010878,2]
[405320848,1770994239205,-150.0,0.00010959,2]
[405320849,1770994239215,-899.05208247,0.00010999,2]
[405320850,1770994239225,-1000.0,0.00011,2]
[405320851,1770994239237,-5150.21335195,0.00011076,2]
[405320852,1770994239246,-642.15267311,0.00011089,2]
[405320853,1770994239256,-43291.78626238,0.00011099,2]
[405320854,1770994239266,-43291.78626237,0.00011099,2]
[405320855,1770994239276,-43291.78626237,0.00011099,2]
[405320856,1770994239285,-43291.78626237,0.00011099,2]
[405320857,1770994239295,-43291.78626237,0.00011099,2]
[405320858,1770994239304,-43291.78626237,0.00011099,2]
[405320859,1770994239314,-43291.78626237,0.00011099,2]
[405320860,1770994239323,-43291.78626237,0.00011099,2]
[405320861,1770994239333,-43291.78626237,0.00011099,2]
[405320862,1770994239343,-43291.78626237,0.00011099,2]
[405320863,1770994239352,-792.95344325,0.0001114,2]
[405320864,1770994239361,-166.66,0.00011243,2]
[405320865,1770994239370,-9999.99,0.00011281,2]
[405320866,1770994239379,-736.0,0.00011384,2]
[405320867,1770994239389,-2500.0,0.00011414,2]
[405320868,1770994239398,-500.0,0.00011414,2]
[405320869,1770994239407,-817.96563851,0.00011433,2]
[405320870,1770994239417,-152.9,0.00011451,2]
[405320871,1770994239427,-370.22,0.00011451,2]
[405320872,1770994239436,-12266.67,0.00011492,2]
[405320873,1770994239446,-1000.0,0.000115,2]
[405320874,1770994239456,-4609.0,0.00011521,2]
[405320875,1770994239465,-166.66,0.00011614,2]
[405320876,1770994239475,-1000.0,0.00011756,2]
[405320877,1770994239487,-361.496009,0.0001197,2]
[405320878,1770994239497,-166.66,0.00011985,2]
[405320879,1770994239507,-1000.0,0.00012,2]
[405320880,1770994239516,-152.9,0.00012023,2]
[405320881,1770994239526,-166.66,0.00012356,2]
[405320882,1770994239536,-1000.0,0.000125,2]
[405320883,1770994239545,-1252.0,0.00012522,2]
[405320884,1770994239555,-152.9,0.00012596,2]
[405320885,1770994239564,-512.0,0.00012635,2]
[405320886,1770994239574,-29668.12,0.00012672,2]
[405320887,1770994239584,-3161.0,0.00012673,2]
[405320888,1770994239593,-899.05208247,0.00012724,2]
[405320889,1770994239602,-166.66,0.00012727,2]
[405320890,1770994239611,-22354.97,0.00012896,2]
[405320891,1770994239623,-1000.0,0.00012932,2]
[405320892,1770994239635,-1000.0,0.00013,2]
[405320893,1770994239644,-6872.89,0.00013054,2]
[405320894,1770994239653,-166.66,0.00013098,2]
[405320895,1770994239663,-152.9,0.00013168,2]
[405320896,1770994239674,-370.5727307,0.00013213,2]
[405320897,1770994239683,-307.0,0.00013457,2]
[405320898,1770994239693,-1000.0,0.000135,2]
[405320899,1770994239704,-500.0,0.00013698,2]
[405320900,1770994239713,-500.0,0.00013698,2]
[405320901,1770994239722,-500.0,0.00013698,2]
[405320902,1770994239735,-500.0,0.00013698,2]
[405320903,1770994239744,-500.0,0.00013698,2]
[405320904,1770994239753,-501.89548392,0.00013698,2]
[405320905,1770994239763,-563.63927172,0.00013698,2]
[405320906,1770994239772,-500.0,0.00013698,2]
[405320907,1770994239782,-448.17514217,0.00013698,2]
[405320908,1770994239791,-500.0,0.00013698,2]
[405320909,1770994239800,-500.0,0.00013698,2]
[405320910,1770994239810,-500.0,0.00013698,2]
[405320911,1770994239819,-500.0,0.00013698,2]
[405320912,1770994239828,-501.87866704,0.00013698,2]
[405320913,1770994239838,-277.56073646,0.00013698,2]
[405320914,1770994239847,-518.70244682,0.00013698,2]
[405320915,1770994239856,-520.25784948,0.00013698,2]
[405320916,1770994239866,-500.0,0.00013698,2]
[405320917,1770994239876,-500.0,0.00013698,2]
[405320918,1770994239885,-500.0,0.00013698,2]
[405320919,1770994239894,-500.0,0.00013698,2]
[405320920,1770994239903,-586.00467181,0.00013698,2]
[405320921,1770994239912,-500.0,0.00013698,2]
[405320922,1770994239922,-500.0,0.00013698,2]
[405320923,1770994239931,-500.0,0.00013698,2]
[405320924,1770994239940,-321.35543779,0.00013698,2]
[405320925,1770994239950,-500.0,0.00013698,2]
[405320926,1770994239959,-500.0,0.00013698,2]
[405320927,1770994239969,-500.0,0.00013698,2]
[405320928,1770994239980,-500.0,0.00013698,2]
[405320929,1770994239989,-500.0,0.00013698,2]
[405320930,1770994239998,-463.4906551,0.00013698,2]
[405320931,1770994240008,-500.0,0.00013698,2]
[405320932,1770994240017,-500.0,0.00013698,2]
[405320933,1770994240027,-509.4313423,0.00013698,2]
[405320934,1770994240036,-500.0,0.00013698,2]
[405320935,1770994240046,-500.0,0.00013698,2]
[405320936,1770994240055,-500.0,0.00013698,2]
[405320937,1770994240065,-500.0,0.00013698,2]
[405320938,1770994240074,-500.0,0.00013698,2]
[405320939,1770994240084,-500.0,0.00013698,2]
[405320940,1770994240093,-500.0,0.00013698,2]
[405320941,1770994240103,-500.0,0.00013698,2]
[405320942,1770994240113,-415.98842539,0.00013698,2]
[405320943,1770994240123,-500.0,0.00013698,2]
[405320944,1770994240133,-500.0,0.00013698,2]
[405320945,1770994240142,-500.0,0.00013698,2]
[405320946,1770994240152,-500.0,0.00013698,2]
[405320947,1770994240161,-500.0,0.00013698,2]
[405320948,1770994240171,-500.0,0.00013698,2]
[405320949,1770994240180,-500.0,0.00013698,2]
[405320950,1770994240190,-500.0,0.00013698,2]
[405320951,1770994240200,-500.0,0.00013698,2]
[405320952,1770994240209,-500.0,0.00013698,2]
[405320953,1770994240219,-500.0,0.00013698,2]
[405320954,1770994240229,-500.0,0.00013698,2]
[405320955,1770994240239,-500.0,0.00013698,2]
[405320956,1770994240248,-500.0,0.00013698,2]
[405320957,1770994240257,-500.0,0.00013698,2]
[405320958,1770994240267,-500.0,0.00013698,2]
[405320959,1770994240283,-183.32821455,0.00013698,2]
[405320960,1770994240292,-500.0,0.00013698,2]
[405320961,1770994240302,-578.39927052,0.00013698,2]
[405320962,1770994240311,-5785.18,0.00013699,2]
[405320963,1770994240321,-204.66,0.00013699,2]
[405320964,1770994240330,-500.0,0.00013699,2]
[405320965,1770994240339,-282.63121113,0.00013699,2]
[405320966,1770994240348,-560.82560614,0.00013699,2]
[405320967,1770994240358,-500.9662317,0.00013699,2]
[405320968,1770994240367,-170.11819774,0.00013699,2]
[405320969,1770994240377,-1000.0,0.00013699,7]
[405320970,1770994240387,-152.9,0.00013741,2]
[405320971,1770994240396,-245.0,0.00013779,2]
[405320972,1770994240406,-1000.0,0.00014,2]
[405320973,1770994240416,-504.227821,0.00014009,7]
[405320974,1770994240425,-1000.0,0.00014108,2]
[405320975,1770994240435,-1000.0,0.00014247,2]
[405320976,1770994240444,-204.0,0.00014279,2]
[405320977,1770994240453,-160.0,0.0001428,2]
[405320978,1770994240463,-152.9,0.00014313,2]
[405320979,1770994240472,-5785.18,0.00014384,2]
[405320980,1770994240483,-899.05208247,0.0001445,2]
[405320981,1770994240492,-1000.0,0.000145,2]
[405320982,1770994240502,-514.41300795,0.00014795,2]
[405320983,1770994240511,-152.9,0.00014886,2]
[405320984,1770994240521,-250.0,0.00015,2]
[405320985,1770994240530,-1000.0,0.00015,2]
[405320986,1770994240539,-5785.18,0.00015068,2]
[405320987,1770994240548,-900.0,0.00015068,2]
[405320988,1770994240558,-328.09,0.00015171,2]
[405320989,1770994240568,-152.9,0.00015459,2]
[405320990,1770994240578,-1000.0,0.000155,2]
[405320991,1770994240587,-5785.18,0.00015753,2]
[405320992,1770994240597,-843.490688,0.0001596,7]
[405320993,1770994240607,-1000.0,0.00016,2]
[405320994,1770994240618,-9999.99,0.00016116,2]
[405320995,1770994240636,-899.05208247,0.00016175,2]
[405320996,1770994240646,-370.22,0.00016342,2]
[405320997,1770994240656,-5785.18,0.00016438,2]
[405320998,1770994240666,-900.0,0.00016438,2]
[405320999,1770994240676,-1000.0,0.000165,2]
[405321000,1770994240686,-300.0,0.00017,2]
[405321001,1770994240695,-10000.0,0.00017,2]
[405321002,1770994240704,-5000.0,0.000171,2]
[405321003,1770994240714,-4200.27,0.000171,2]
[405321004,1770994240724,-5000.0,0.000172,2]
[405321005,1770994240739,-5000.0,0.000173,2]
[405321006,1770994240750,-199.72,0.00017306,2]
[405321007,1770994240760,-199.71842784,0.00017369,2]
[405321008,1770994240770,-5000.0,0.000174,2]
[405321009,1770994240780,-5000.0,0.000175,2]
[405321010,1770994240791,-5000.0,0.000176,2]
[405321011,1770994240802,-1778.8903698,0.0001764,2]
[405321012,1770994240812,-328.09,0.00017669,2]
[405321013,1770994240822,-500.0,0.00017699,2]
[405321014,1770994240834,-5000.0,0.000177,2]
[405321015,1770994240844,-732.0,0.000177,2]
[405321016,1770994240853,-1000.0,0.0001771,2]
[405321017,1770994240863,-481.89542729,0.00017742,2]
[405321018,1770994240872,-1000.0,0.00017749,2]
[405321019,1770994240882,-1000.0,0.00017762,2]
[405321020,1770994240892,-1000.0,0.00017765,2]
[405321021,1770994240902,-370.5727307,0.00017787,2]
[405321022,1770994240911,-5000.0,0.000178,2]
[405321023,1770994240921,-587.55355067,0.00017808,2]
[405321024,1770994240932,-587.55355067,0.00017808,2]
[405321025,1770994240942,-587.55355067,0.00017808,2]
[405321026,1770994240952,-587.55355067,0.00017808,2]
[405321027,1770994240962,-587.55355067,0.00017808,2]
[405321028,1770994240972,-587.55355067,0.00017808,2]
[405321029,1770994240987,-587.55355067,0.00017808,2]
[405321030,1770994240999,-587.55355067,0.00017808,2]
[405321031,1770994241009,-587.55355067,0.00017808,2]
[405321032,1770994241020,-587.55355067,0.00017808,2]
[405321033,1770994241031,-587.55355067,0.00017808,2]
[405321034,1770994241041,-587.55355067,0.00017808,2]
[405321035,1770994241051,-587.55355067,0.00017808,2]
[405321036,1770994241062,-587.55355067,0.00017808,2]
[405321037,1770994241072,-587.55355067,0.00017808,2]
[405321038,1770994241082,-587.55355067,0.00017808,2]
[405321039,1770994241092,-616.9312282,0.00017808,2]
[405321040,1770994241103,-616.9312282,0.00017808,2]
[405321041,1770994241112,-616.9312282,0.00017808,2]
[405321042,1770994241122,-616.9312282,0.00017808,2]
[405321043,1770994241132,-616.9312282,0.00017808,2]
[405321044,1770994241142,-616.9312282,0.00017808,2]
[405321045,1770994241152,-616.9312282,0.00017808,2]
[405321046,1770994241162,-616.9312282,0.00017808,2]
[405321047,1770994241172,-616.9312282,0.00017808,2]
[405321048,1770994241181,-616.9312282,0.00017808,2]
[405321049,1770994241191,-616.9312282,0.00017808,2]
[405321050,1770994241201,-616.9312282,0.00017808,2]
[405321051,1770994241211,-250.0,0.00017808,20]
[405321052,1770994241220,-250.0,0.00017808,20]
[405321053,1770994241234,-250.0,0.00017808,20]
[405321054,1770994241244,-323.200011,0.00017808,20]
[405321055,1770994241255,-370.24456559,0.00017808,2]
[405321056,1770994241265,-1000.0,0.0001782,2]
[405321057,1770994241275,-1111.11111,0.0001782,2]
[405321058,1770994241284,-1111.11111,0.0001782,2]
[405321059,1770994241293,-25000.0,0.0001783,3]
[405321060,1770994241303,-151.0,0.00017838,2]
[405321061,1770994241313,-25000.0,0.00017838,3]
[405321062,1770994241322,-25000.0,0.00017847,3]
[405321063,1770994241332,-25000.0,0.00017856,3]
[405321064,1770994241341,-7889.0,0.00017859,2]
[405321065,1770994241351,-151.0,0.00017859,2]
[405321066,1770994241360,-151.0,0.00017859,2]
[405321067,1770994241369,-25000.0,0.00017865,3]
[405321068,1770994241379,-25000.0,0.00017874,3]
[405321069,1770994241388,-151.0,0.00017874,2]
[405321070,1770994241397,-298.65190471,0.00017876,2]
[405321071,1770994241407,-25000.0,0.00017882,3]
[405321072,1770994241416,-1000.0,0.00017887,2]
[405321073,1770994241426,-25000.0,0.00017891,3]
[405321074,1770994241435,-899.05208247,0.000179,2]
[405321075,1770994241445,-2783.08913463,0.000179,3]
[405321076,1770994241462,-1080.36320503,0.000179,3]
[405321077,1770994241473,-17785.83770818,0.000179,3]
[405321078,1770994241488,-3350.70995216,0.000179,3]
[405321079,1770994241498,-5000.0,0.000179,2]
[405321080,1770994241511,-151.0,0.000179,2]
[405321081,1770994241521,-177.747872,0.000179,2]
[405321082,1770994241530,-1000.0,0.00017923,2]
[405321083,1770994241540,-1000.0,0.0001793,2]
[405321084,1770994241550,-1000.0,0.00017932,2]
[405321085,1770994241560,-520.54217584,0.00017949,2]
[405321086,1770994241583,-479.45782416,0.00017949,2]
[405321087,1770994241592,-346.43402796,0.0001795,2]
[405321088,1770994241604,-653.56597204,0.0001795,2]
[405321089,1770994241614,-4833.05539934,0.00017954,2]
[405321090,1770994241629,-2955.50774909,0.00017954,2]
[405321091,1770994241640,-3432.65,0.00017954,2]
[405321092,1770994241659,-72995.59539907,0.00017954,2]
[405321093,1770994241670,-9005.6492134,0.00017954,2]
[405321094,1770994241679,-200.0,0.00017958,3]
[405321095,1770994241689,-200.0,0.00017958,3]
[405321096,1770994241699,-200.0,0.00017958,3]
[405321097,1770994241708,-200.0,0.00017958,3]
[405321098,1770994241718,-500.0,0.00017958,3]
[405321099,1770994241727,-16669.09437,0.00017975,2]
[405321100,1770994241739,-35764.14046179,0.00017976,2]
[405321101,1770994241930,-500.0,8.739e-05,2]
[405321102,1770994241940,-485.38374795,9.013e-05,2]
[405321103,1770994241952,-14.61625205,9.013e-05,2]
[405321104,1770994241962,-377.77516592,9.287e-05,2]
[405321105,1770994242045,-122.22483408,9.287e-05,2]
[405321106,1770994242056,-384.82064227,9.561e-05,2]
[405321107,1770994242069,-261.90945574,9.561e-05,2]
[405321108,1770994242244,-68626.09054426,0.00017976,2]
[405321109,1770994242269,-254388.33293831,0.00017976,2]
[405321110,1770994242280,-50820.83029231,0.00017976,2]
[405321111,1770994242327,-23494.38167213,0.00017976,2]
[405321112,1770994242336,-151.680019,0.00017976,2]
[405321113,1770994242345,-158.627137,0.00017976,2]
[405321114,1770994242355,-177.834787,0.00017976,2]
[405321115,1770994242364,-43167.47638487,0.00018,2]
[405321132,1770994243694,-3475.783224,0.00018,2]
[405321136,1770994245902,-497.63932139,0.00018,2]
[405321137,1770994245914,-58142.2428412,0.00018,2]
[405321138,1770994245924,-9189.46121666,0.00018,2]
[405321139,1770994245937,-4179.8973662,0.00018,2]
[405321140,1770994245949,-1548.67318785,0.00018,2]
[405321141,1770994245961,-991.35536615,0.00018,2]
[405321143,1770994497391,-3808.160549,8.595e-05,2]
[405321144,1770994497418,-1064.30176468,8.638e-05,3]
[405321145,1770994497447,-300.0,8.638e-05,2]
[405321146,1770994497474,-150.0,8.638e-05,2]
[405321147,1770994497505,-291.23778059,8.638e-05,2]
[405321148,1770994497531,-489.23765123,8.638e-05,2]
[405321149,1770994497558,-500.0,8.638e-05,2]
[405321150,1770994497584,-200.0,8.638e-05,2]
[405321151,1770994497603,-3808.160549,8.639e-05,2]
[405321152,1770994497614,-1064.30176468,8.639e-05,2]
[405321153,1770994497626,-300.0,8.639e-05,2]
[405321154,1770994497637,-150.0,8.639e-05,2]
[405321155,1770994497648,-291.23778059,8.639e-05,2]
[405321156,1770994497659,-489.23765123,8.639e-05,2]
[405321157,1770994497671,-500.0,8.639e-05,2]
[405321158,1770994497682,-200.0,8.639e-05,2]
[405321159,1770994497694,-6394.124509,8.639e-05,2]
[405321160,1770994514087,-1200.0,8.638e-05,2]
[405321161,1770994514120,-500.0,8.638e-05,2]
[405321162,1770994514153,-500.0,8.638e-05,2]
[405321163,1770994514185,-100.0,8.638e-05,2]
[405321164,1770994514219,-400.0,8.638e-05,2]
[405321165,1770994514228,-500.0,8.638e-05,2]
[405321166,1770994514237,-300.0,8.638e-05,2]
[405321167,1770994514252,-309.82248569,8.638e-05,2]
[405321168,1770994514261,-190.17751431,8.639e-05,2]
[405321169,1770994514272,-500.0,8.639e-05,2]
[405321170,1770994514283,-500.0,8.639e-05,2]
[405321173,1770994533618,-13197.0622545,8.639e-05,2]
[405321174,1770994547377,-600000.0,8.639e-05,2]
[405321175,1770994569352,-295.27,8.6e-05,2]
[405321176,1770994569395,-26909.46,8.639e-05,2]
[405321177,1770994629024,-200.0,8.539e-05,2]
[405321182,1770995020094,-2311.456,8.368e-05,2]
[405321183,1770995020130,-158.098,8.368e-05,2]
[405321184,1770995020164,-324.94980882,8.368e-05,2]
[405321185,1770995020199,-300.0,8.438e-05,2]
[405321186,1770995020231,-28430.00558236,8.439e-05,2]
[405321187,1770995020331,-1950.98121764,8.439e-05,2]
[405321188,1770995104849,-1200.0,8.437e-05,2]
[405321189,1770995104876,-327.37458332,8.438e-05,2]
[405321190,1770995104910,-500.0,8.438e-05,2]
[405321191,1770995104941,-209.72391114,8.438e-05,2]
[405321192,1770995104970,-306.61140154,8.438e-05,2]
[405321193,1770995105002,-500.0,8.438e-05,2]
[405321194,1770995105032,-500.0,8.438e-05,2]
[405321195,1770995105061,-500.0,8.438e-05,2]
[405321196,1770995105240,-11912.580208,8.439e-05,2]
[405321208,1770995386517,3000.0,0.0002,30]
[405321214,1770995431881,-150.0,8.338e-05,2]
[405321215,1770995431892,-300.0,8.338e-05,2]
[405321216,1770995431902,-50.0,8.338e-05,2]
[405321217,1770995431919,-699.36702806,8.338e-05,2]
[405321218,1770995431931,-450.63297194,8.338e-05,2]
[405321219,1770995431941,-2040.96471037,8.339e-05,2]
[405321220,1770995431953,-2107.28432845,8.339e-05,2]
[405321221,1770995431974,-2000.0,8.339e-05,2]
[405321222,1770995432001,-338.61,8.339e-05,2]
[405321223,1770995432013,-82083.76570201,8.339e-05,2]
[405321224,1770995432024,-562763.56245022,8.339e-05,2]
[405321225,1770995432052,-869.56,8.339e-05,2]
[405321226,1770995432064,-951.09995283,8.339e-05,2]
[405321227,1770995432077,-387.29377715,8.339e-05,2]
[405321228,1770995432107,-462.1300956,8.339e-05,2]
[405321229,1770995432119,-1075.43,8.339e-05,2]
[405321230,1770995435396,6000.0,0.0002,30]
[405321235,1770995438114,-18680.0,8.339e-05,2]
[405321236,1770995438127,-585.86057944,8.339e-05,2]
[405321237,1770995438139,-262.56508405,8.339e-05,2]
[405321238,1770995438235,-68292.43385841,8.339e-05,2]
[405321239,1770995438259,-2757099.43946147,8.339e-05,2]
[405321240,1770995438269,-500.0,8.438e-05,2]
[405321241,1770995438284,-500.0,8.438e-05,2]
[405321242,1770995438294,-614.62798108,8.438e-05,2]
[405321243,1770995438305,-229.16220833,8.438e-05,2]
[405321245,1770995438315,-186.15512095,8.438e-05,2]
[405321247,1770995438326,-825.07353291,8.438e-05,2]
[405321249,1770995438336,-646.17724476,8.438e-05,2]
[405321251,1770995438346,-13916.4401,8.439e-05,2]
[405321253,1770995438356,-6734.8376,8.439e-05,2]
[405321255,1770995438366,-649.8996176,8.439e-05,2]
[405321257,1770995438376,-500.0,8.539e-05,2]
[405321259,1770995438387,-500.0,8.539e-05,2]
[405321261,1770995438398,-500.0,8.539e-05,2]
[405321263,1770995438412,-8114.86,8.639e-05,2]
[405321265,1770995438423,-1203.47,8.639e-05,2]
[405321267,1770995438434,-9999.99,8.639e-05,2]
[405321270,1770995438444,-150.99,8.639e-05,2]
[405321272,1770995438454,-377639.0655707,8.658e-05,2]
[405321274,1770995438464,-18056.33349,8.658e-05,2]
[405321277,1770995438479,-247.81,8.897e-05,2]
[405321279,1770995438490,-300.0,8.983e-05,2]
[405321281,1770995438500,-500.0,9e-05,2]
[405321283,1770995438511,-255.0,9.172e-05,2]
[405321285,1770995438522,-420.0,9.172e-05,2]
[405321287,1770995438533,-1680.0,9.172e-05,2]
[405321289,1770995438544,-258.82,9.22e-05,2]
[405321291,1770995438554,-500.0,9.223e-05,2]
[405321293,1770995438564,-500.0,9.223e-05,2]
[405321296,1770995438576,-501.77969329,9.223e-05,2]
[405321298,1770995438586,-500.0,9.223e-05,2]
[405321300,1770995438596,-500.0,9.223e-05,2]
[405321302,1770995438606,-500.0,9.223e-05,2]
[405321304,1770995438617,-500.0,9.223e-05,2]
[405321306,1770995438627,-500.0,9.223e-05,2]
[405321308,1770995438637,-500.0,9.223e-05,2]
[405321310,1770995438648,-228.27051733,9.223e-05,2]
[405321312,1770995438663,-500.0,9.223e-05,2]
[405321314,1770995438678,-513.76878479,9.223e-05,2]
[405321316,1770995438690,-623.71743587,9.223e-05,2]
[405321319,1770995438701,-500.0,9.223e-05,2]
[405321321,1770995438711,-500.0,9.223e-05,2]
[405321323,1770995438722,-500.0,9.223e-05,2]
[405321325,1770995438733,-309607.58426209,9.31e-05,2]
[405321327,1770995438744,-9999.99,9.67e-05,2]
[405321329,1770995438754,-84262.6651791,9.767e-05,2]
[405321331,1770995438765,-4028.9125833,9.767e-05,2]
[405321333,1770995438775,-508.33512223,9.771e-05,2]
[405321335,1770995438786,-1000.0,9.771e-05,2]
[405321337,1770995438796,-1000.0,9.771e-05,2]
[405321339,1770995438806,-1000.0,9.771e-05,2]
[405321341,1770995438816,-1000.0,9.771e-05,2]
[405321343,1770995438827,-487.36366918,9.771e-05,2]
[405321345,1770995438837,-1000.0,9.771e-05,2]
[405321347,1770995438847,-503.71008588,9.771e-05,2]
[405321350,1770995438862,-1000.0,9.771e-05,2]
[405321352,1770995438872,-500.0,9.771e-05,2]
[405321354,1770995438885,-232.78327733,0.0001,2]
[405321356,1770995438895,-232.78327733,0.0001,2]
[405321358,1770995438910,-232.78327733,0.0001,2]
[405321360,1770995438920,-370.57273071,0.0001,2]
[405321362,1770995438931,-151.0,0.0001,2]
[405321364,1770995438941,-151.0,0.0001,2]
[405321366,1770995438951,-151.0,0.0001,2]
[405321368,1770995438961,-151.0,0.0001,2]
[405321370,1770995438970,-151.0,0.0001,2]
[405321372,1770995438980,-151.0,0.0001,2]
[405321374,1770995438991,-151.0,0.0001,2]
[405321376,1770995439004,-151.0,0.0001,2]
[405321378,1770995439014,-151.0,0.0001,2]
[405321380,1770995439024,-151.0,0.0001,2]
[405321382,1770995439035,-151.0,0.0001,2]
[405321384,1770995439044,-151.0,0.0001,2]
[405321386,1770995439053,-151.0,0.0001,2]
[405321388,1770995439065,-151.0,0.0001,2]
[405321391,1770995439077,-151.0,0.0001,2]
[405321393,1770995439087,-151.0,0.0001,2]
[405321395,1770995439099,-151.0,0.0001,2]
[405321397,1770995439108,-151.0,0.0001,2]
[405321399,1770995439118,-151.0,0.0001,2]
[405321401,1770995439128,-151.0,0.0001,2]
[405321403,1770995439139,-175.06822215,0.0001,2]
[405321405,1770995439149,-224.0,0.0001,2]
[405321407,1770995439163,-224.0,0.0001,2]
[405321409,1770995439173,-226.54609765,0.0001,2]
[405321411,1770995439183,-151.0,0.0001,2]
[405321413,1770995439193,-253.18978962,0.0001,2]
[405321415,1770995439203,-797.40393797,0.0001,2]
[405321417,1770995439213,-797.40393797,0.0001,2]
[405321419,1770995439224,-18801.5419759,0.00010015,2]
[405321421,1770995439234,-898.9719099,0.00010015,2]
[405321423,1770995439244,-500.0,0.00010045,2]
[405321425,1770995439254,-433.0,0.00010089,2]
[405321427,1770995439265,-587.0,0.00010089,2]
[405321429,1770995439275,-2351.0,0.00010089,2]
[405321431,1770995439286,-153.95555708,0.00010318,2]
[405321433,1770995439296,-1500.0,0.00010318,2]
[405321435,1770995439307,-1500.0,0.00010318,2]
[405321437,1770995439318,-1500.0,0.00010318,2]
[405321439,1770995439328,-1504.78323931,0.00010318,2]
[405321441,1770995439339,-1500.0,0.00010318,2]
[405321444,1770995439349,-500.0,0.00010319,2]
[405321446,1770995439359,-200.0,0.00010319,2]
[405321448,1770995439369,-2774.63672039,0.00010375,2]
[405321450,1770995439379,-26985.4,0.0001043,2]
[405321452,1770995439389,-500.0,0.00010593,2]
[405321454,1770995439399,-2000.0,0.00010866,2]
[405321456,1770995439414,-2000.0,0.00010866,2]
[405321458,1770995439424,-766.54635509,0.00010866,2]
[405321460,1770995439433,-2000.0,0.00010866,2]
[405321463,1770995439449,-500.0,0.00010867,2]
[405321465,1770995439463,-1142.05558624,0.00010887,2]
[405321467,1770995439473,-7228.93097255,0.000109,2]
[405321469,1770995439483,-554.07,0.00010917,2]
[405321471,1770995439493,-184.33,0.00010959,2]
[405321473,1770995439502,-250.0,0.00011017,2]
[405321476,1770995439512,-8263.28,0.00011035,2]
[405321478,1770995439522,-8392.67512662,0.00011035,2]
[405321480,1770995439532,-893.97,0.00011043,2]
[405321482,1770995439542,-736.0,0.00011098,2]
[405321484,1770995439552,-823.0,0.00011098,2]
[405321486,1770995439561,-3292.0,0.00011098,2]
[405321488,1770995439571,-44364.89013531,0.00011099,2]
[405321490,1770995439581,-44364.89013523,0.00011099,2]
[405321492,1770995439591,-44364.89013523,0.00011099,2]
[405321494,1770995439600,-44364.89013523,0.00011099,2]
[405321496,1770995439610,-44364.89013523,0.00011099,2]
[405321498,1770995439620,-44364.89013523,0.00011099,2]
[405321500,1770995439630,-36903.09562883,0.00011099,2]
[405321502,1770995439640,-36903.09562883,0.00011099,2]
[405321504,1770995439649,-36903.09562883,0.00011099,2]
[405321506,1770995439663,-36903.09562883,0.00011099,2]
[405321508,1770995439673,-36903.09562883,0.00011099,2]
[405321510,1770995439683,-36903.09562883,0.00011099,2]
[405321513,1770995439693,-36903.09562883,0.00011099,2]
[405321515,1770995439702,-36903.09562883,0.00011099,2]
[405321517,1770995439711,-36903.09562883,0.00011099,2]
[405321519,1770995439721,-36903.09562883,0.00011099,2]
[405321521,1770995439731,-500.0,0.00011141,2]
[405321523,1770995439740,-44364.89013523,0.00011178,2]
[405321525,1770995439750,-7228.93097254,0.00011375,2]
[405321527,1770995439759,-2500.0,0.00011414,2]